[Event "Late-Titled-Tuesday-Blitz-June-25-2024"]
[Site "Chess.com"]
[Date "2024.06.25"]
[Round "3"]
[White "GrotBchess"]
[Black "DmitriiZakurdaev"]
[Result "1/2-1/2"]
[WhiteElo "2601"]
[BlackElo "2397"]
[TimeControl "180+1"]
[EndTime "14:27:24 PDT"]
[Termination "Game drawn by repetition"]

1. e4 {[%clk 0:03:00.9]} 1... c6 {[%clk 0:03:00]} 2. d4 {[%clk 0:02:59.9]} 2...
d5 {[%clk 0:03:00.9]} 3. Nd2 {[%clk 0:03:00]} 3... dxe4 {[%clk 0:03:01.1]} 4.
Nxe4 {[%clk 0:03:00.9]} 4... Nf6 {[%clk 0:03:01.6]} 5. Nxf6+ {[%clk 0:03:00.7]}
5... exf6 {[%clk 0:03:02.5]} 6. c3 {[%clk 0:03:01]} 6... Bd6 {[%clk 0:03:03]} 7.
Bd3 {[%clk 0:03:01.2]} 7... O-O {[%clk 0:03:03.7]} 8. Ne2 {[%clk 0:03:01.3]}
8... Re8 {[%clk 0:03:04.3]} 9. O-O {[%clk 0:03:01.4]} 9... h5 {[%clk 0:03:04.1]}
10. Nf4 {[%clk 0:03:01.1]} 10... h4 {[%clk 0:03:02.6]} 11. Qh5 {[%clk 0:02:59]}
11... f5 {[%clk 0:02:39.3]} 12. Bxf5 {[%clk 0:02:47.4]} 12... Bxf5 {[%clk
0:02:34.6]} 13. Qxf5 {[%clk 0:02:46.9]} 13... Nd7 {[%clk 0:02:30.6]} 14. Nd3
{[%clk 0:02:39.1]} 14... Qc7 {[%clk 0:02:25]} 15. Bf4 {[%clk 0:02:38.3]} 15...
Re2 {[%clk 0:02:02.3]} 16. Rfe1 {[%clk 0:02:27.2]} 16... Rae8 {[%clk 0:02:00.5]}
17. Bxd6 {[%clk 0:02:20.1]} 17... Qxd6 {[%clk 0:01:56.8]} 18. Ne5 {[%clk
0:02:19.8]} 18... Rxe1+ {[%clk 0:01:11.2]} 19. Rxe1 {[%clk 0:02:20.7]} 19... f6
{[%clk 0:00:58.6]} 20. Nf3 {[%clk 0:02:08.6]} 20... Rxe1+ {[%clk 0:00:59.5]} 21.
Nxe1 {[%clk 0:02:08.9]} 21... Qe7 {[%clk 0:01:00.3]} 22. Nf3 {[%clk 0:02:02.8]}
22... Qe2 {[%clk 0:00:58.2]} 23. h3 {[%clk 0:02:02.7]} 23... Nf8 {[%clk
0:00:56.6]} 24. Qb1 {[%clk 0:02:02.1]} 24... g5 {[%clk 0:00:42.5]} 25. Qf5
{[%clk 0:02:00.5]} 25... Kg7 {[%clk 0:00:36.1]} 26. Qb1 {[%clk 0:01:44.4]} 26...
Ng6 {[%clk 0:00:31.8]} 27. Nh2 {[%clk 0:01:34.7]} 27... Nf4 {[%clk 0:00:26.3]}
28. Nf1 {[%clk 0:01:34.6]} 28... Nd3 {[%clk 0:00:24.5]} 29. f3 {[%clk
0:01:19.7]} 29... Qf2+ {[%clk 0:00:23.9]} 30. Kh2 {[%clk 0:01:04.5]} 30... Ne1
{[%clk 0:00:21.5]} 31. Ne3 {[%clk 0:00:51.6]} 31... Qxe3 {[%clk 0:00:22]} 32.
Qf5 {[%clk 0:00:50.9]} 32... Qf2 {[%clk 0:00:13.7]} 33. Qd7+ {[%clk 0:00:46]}
33... Kh6 {[%clk 0:00:13.6]} 34. Qg4 {[%clk 0:00:37.4]} 34... Qxb2 {[%clk
0:00:12.3]} 35. f4 {[%clk 0:00:34.3]} 35... Qf2 {[%clk 0:00:02.8]} 36. fxg5+
{[%clk 0:00:31.7]} 36... fxg5 {[%clk 0:00:03.7]} 37. Qe6+ {[%clk 0:00:31.8]}
37... Kg7 {[%clk 0:00:04.4]} 38. Qe7+ {[%clk 0:00:30.6]} 38... Kg6 {[%clk
0:00:03.4]} 39. Qe6+ {[%clk 0:00:30.7]} 39... Kh5 {[%clk 0:00:02.3]} 40. Qg4+
{[%clk 0:00:29.1]} 40... Kg6 {[%clk 0:00:02.7]} 41. Qe6+ {[%clk 0:00:29.3]}
41... Kg7 {[%clk 0:00:03.2]} 42. Qe7+ {[%clk 0:00:29.3]} 42... Kg6 {[%clk
0:00:03.3]} 43. Qe6+ {[%clk 0:00:26.3]} 1/2-1/2

[Event "Late-Titled-Tuesday-Blitz-June-25-2024"]
[Site "Chess.com"]
[Date "2024.06.25"]
[Round "3"]
[White "crazy_machine"]
[Black "ACollins05"]
[Result "1-0"]
[WhiteElo "2635"]
[BlackElo "2417"]
[TimeControl "180+1"]
[EndTime "14:27:30 PDT"]
[Termination "crazy_machine won by resignation"]

1. d4 {[%clk 0:02:57.2]} 1... b5 {[%clk 0:03:00]} 2. e4 {[%clk 0:02:53.1]} 2...
a6 {[%clk 0:02:59.7]} 3. a4 {[%clk 0:02:51.4]} 3... b4 {[%clk 0:02:58]} 4. c3
{[%clk 0:02:50.7]} 4... Bb7 {[%clk 0:02:57.3]} 5. Bd3 {[%clk 0:02:49.2]} 5... e6
{[%clk 0:02:57.4]} 6. Nf3 {[%clk 0:02:48.8]} 6... Nf6 {[%clk 0:02:56.8]} 7. Qe2
{[%clk 0:02:49.3]} 7... c5 {[%clk 0:02:54.5]} 8. O-O {[%clk 0:02:48.1]} 8... d6
{[%clk 0:02:53.9]} 9. e5 {[%clk 0:02:47.9]} 9... Nd5 {[%clk 0:02:50.7]} 10. Nbd2
{[%clk 0:02:46.8]} 10... Nf4 {[%clk 0:02:49.3]} 11. Qe3 {[%clk 0:02:47.2]} 11...
Nxd3 {[%clk 0:02:47]} 12. Qxd3 {[%clk 0:02:48.1]} 12... Nd7 {[%clk 0:02:41]} 13.
exd6 {[%clk 0:02:46.4]} 13... Bxd6 {[%clk 0:02:40.4]} 14. Ne4 {[%clk 0:02:47]}
14... Be7 {[%clk 0:02:38.2]} 15. Be3 {[%clk 0:02:43.9]} 15... cxd4 {[%clk
0:02:29.7]} 16. Bxd4 {[%clk 0:02:44.8]} 16... Nc5 {[%clk 0:02:14.8]} 17. Nxc5
{[%clk 0:02:40.4]} 17... Bxc5 {[%clk 0:02:14.8]} 18. cxb4 {[%clk 0:02:36.4]}
18... Bxb4 {[%clk 0:02:06.3]} 19. Qb3 {[%clk 0:02:23.8]} 19... a5 {[%clk
0:02:02.2]} 20. Bxg7 {[%clk 0:02:16.6]} 20... Rg8 {[%clk 0:02:01.9]} 21. Rfd1
{[%clk 0:02:14.3]} 21... Bd5 {[%clk 0:01:50.6]} 22. Rxd5 {[%clk 0:01:26]} 22...
Qxd5 {[%clk 0:01:51.5]} 23. Qxd5 {[%clk 0:01:24.3]} 23... exd5 {[%clk
0:01:52.4]} 24. Bd4 {[%clk 0:01:23.3]} 24... Rc8 {[%clk 0:01:38.4]} 25. Kf1
{[%clk 0:01:23.7]} 25... Rg6 {[%clk 0:01:34.1]} 26. Rd1 {[%clk 0:01:19.7]} 26...
Rgc6 {[%clk 0:01:30.4]} 27. Be3 {[%clk 0:01:20.2]} 27... Rd8 {[%clk 0:01:19.5]}
28. Nd4 {[%clk 0:01:18.8]} 28... Rc4 {[%clk 0:01:17.6]} 29. g3 {[%clk 0:00:54]}
29... Kf8 {[%clk 0:01:11.7]} 30. Nf5 {[%clk 0:00:46.8]} 30... f6 {[%clk
0:01:02.4]} 31. h4 {[%clk 0:00:46.1]} 31... Rc2 {[%clk 0:00:57.6]} 32. Nd4
{[%clk 0:00:46.2]} 32... Rxb2 {[%clk 0:00:39.7]} 33. Ne6+ {[%clk 0:00:46.1]}
33... Ke7 {[%clk 0:00:39.3]} 34. Nxd8 {[%clk 0:00:47]} 34... Kxd8 {[%clk
0:00:39]} 35. Rxd5+ {[%clk 0:00:47.4]} 35... Ke7 {[%clk 0:00:39.6]} 36. Bb6
{[%clk 0:00:42.2]} 36... Ke6 {[%clk 0:00:32.2]} 37. Rb5 {[%clk 0:00:39.1]} 37...
Ra2 {[%clk 0:00:29.3]} 38. Bxa5 {[%clk 0:00:38]} 38... Be7 {[%clk 0:00:22.5]}
39. Bb4 {[%clk 0:00:37]} 39... Bxb4 {[%clk 0:00:08.7]} 40. Rxb4 {[%clk
0:00:37.9]} 40... Kf5 {[%clk 0:00:09]} 41. Rf4+ {[%clk 0:00:37]} 41... Kg6
{[%clk 0:00:08.6]} 42. Ke1 {[%clk 0:00:36.6]} 42... h5 {[%clk 0:00:08.1]} 43.
Kd1 {[%clk 0:00:37]} 43... f5 {[%clk 0:00:08.4]} 44. Kc1 {[%clk 0:00:37.1]}
44... Kf6 {[%clk 0:00:09]} 45. Kb1 {[%clk 0:00:37.5]} 45... Re2 {[%clk
0:00:08.3]} 46. a5 {[%clk 0:00:36.1]} 46... Re1+ {[%clk 0:00:06.9]} 47. Kb2
{[%clk 0:00:33.8]} 47... Re7 {[%clk 0:00:07.2]} 48. Ra4 {[%clk 0:00:32.8]} 48...
Ra7 {[%clk 0:00:06.7]} 49. a6 {[%clk 0:00:33]} 1-0

[Event "Late-Titled-Tuesday-Blitz-June-25-2024"]
[Site "Chess.com"]
[Date "2024.06.25"]
[Round "3"]
[White "Kaustubh_Kodihalli"]
[Black "BerlinDrawer"]
[Result "0-1"]
[WhiteElo "2442"]
[BlackElo "2640"]
[TimeControl "180+1"]
[EndTime "14:27:30 PDT"]
[Termination "BerlinDrawer won by checkmate"]

1. e4 {[%clk 0:03:00.9]} 1... c5 {[%clk 0:02:59.9]} 2. Nf3 {[%clk 0:03:00.7]}
2... d6 {[%clk 0:02:59.7]} 3. d4 {[%clk 0:03:01]} 3... cxd4 {[%clk 0:02:59.6]}
4. Nxd4 {[%clk 0:03:01.9]} 4... Nf6 {[%clk 0:03:00]} 5. Nc3 {[%clk 0:03:01.9]}
5... a6 {[%clk 0:03:00]} 6. f3 {[%clk 0:03:01.7]} 6... e5 {[%clk 0:02:59.5]} 7.
Nb3 {[%clk 0:03:01.9]} 7... Be6 {[%clk 0:02:58.5]} 8. Be3 {[%clk 0:03:01.9]}
8... h5 {[%clk 0:02:57.5]} 9. Qd2 {[%clk 0:02:58.4]} 9... Nbd7 {[%clk
0:02:56.8]} 10. O-O-O {[%clk 0:02:58.6]} 10... b5 {[%clk 0:02:55.4]} 11. Nd5
{[%clk 0:02:50.7]} 11... Rc8 {[%clk 0:02:51.6]} 12. Kb1 {[%clk 0:02:46.8]} 12...
Bxd5 {[%clk 0:02:45.5]} 13. exd5 {[%clk 0:02:46.6]} 13... Nb6 {[%clk 0:02:34.5]}
14. Bg5 {[%clk 0:02:46.3]} 14... Be7 {[%clk 0:02:30.3]} 15. Bxf6 {[%clk
0:02:28.5]} 15... Bxf6 {[%clk 0:02:30.2]} 16. Na5 {[%clk 0:02:23.7]} 16... g6
{[%clk 0:02:25.7]} 17. Nc6 {[%clk 0:02:13.1]} 17... Qd7 {[%clk 0:02:22.6]} 18.
Be2 {[%clk 0:02:10.1]} 18... O-O {[%clk 0:02:15.1]} 19. c3 {[%clk 0:01:54.5]}
19... Nxd5 {[%clk 0:02:08]} 20. Qxd5 {[%clk 0:01:53.8]} 20... Rxc6 {[%clk
0:02:05.6]} 21. g4 {[%clk 0:01:50.2]} 21... h4 {[%clk 0:02:03.4]} 22. Bd3 {[%clk
0:01:46.5]} 22... Kg7 {[%clk 0:01:51.2]} 23. Be4 {[%clk 0:01:44.9]} 23... Rb6
{[%clk 0:01:51.1]} 24. Rhg1 {[%clk 0:01:38.5]} 24... Qe7 {[%clk 0:01:46.9]} 25.
h3 {[%clk 0:01:23.3]} 25... Rfb8 {[%clk 0:01:43.8]} 26. Rge1 {[%clk 0:01:19.9]}
26... Bg5 {[%clk 0:01:38.7]} 27. Rd3 {[%clk 0:01:08.1]} 27... a5 {[%clk
0:01:34.6]} 28. Red1 {[%clk 0:01:06.9]} 28... b4 {[%clk 0:01:27]} 29. c4 {[%clk
0:01:06.6]} 29... Qc7 {[%clk 0:01:22.6]} 30. Re1 {[%clk 0:00:44]} 30... Bf4
{[%clk 0:01:18]} 31. Re2 {[%clk 0:00:43]} 31... a4 {[%clk 0:01:15.7]} 32. Rd1
{[%clk 0:00:35.5]} 32... Rc8 {[%clk 0:01:13.5]} 33. Rc2 {[%clk 0:00:30.4]} 33...
b3 {[%clk 0:01:10.8]} 34. axb3 {[%clk 0:00:25.8]} 34... axb3 {[%clk 0:01:10.8]}
35. Rc3 {[%clk 0:00:26.2]} 35... Qa7 {[%clk 0:01:09.3]} 36. c5 {[%clk
0:00:19.2]} 36... dxc5 {[%clk 0:01:03.4]} 37. Rxb3 {[%clk 0:00:16.9]} 37... Rxb3
{[%clk 0:00:53.7]} 38. Qxb3 {[%clk 0:00:16.7]} 38... Rc7 {[%clk 0:00:53.6]} 39.
Qc4 {[%clk 0:00:14.5]} 39... Qa5 {[%clk 0:00:50]} 40. Qc3 {[%clk 0:00:09.1]}
40... Qb6 {[%clk 0:00:46.5]} 41. Rd5 {[%clk 0:00:07.6]} 41... c4 {[%clk
0:00:41.3]} 42. Rd8 {[%clk 0:00:04.4]} 42... Qg1+ {[%clk 0:00:33.1]} 43. Ka2
{[%clk 0:00:04.2]} 43... Ra7+ {[%clk 0:00:31.7]} 44. Qa3 {[%clk 0:00:04.1]}
44... Rxa3+ {[%clk 0:00:31.8]} 45. Kxa3 {[%clk 0:00:05]} 45... Qb6 {[%clk
0:00:31.6]} 46. Ra8 {[%clk 0:00:04.1]} 46... Qb3# {[%clk 0:00:31.3]} 0-1

[Event "Late-Titled-Tuesday-Blitz-June-25-2024"]
[Site "Chess.com"]
[Date "2024.06.25"]
[Round "3"]
[White "Charodej1"]
[Black "tactic"]
[Result "1-0"]
[WhiteElo "2486"]
[BlackElo "2687"]
[TimeControl "180+1"]
[EndTime "14:27:35 PDT"]
[Termination "Charodej1 won by checkmate"]

1. e4 {[%clk 0:03:00.9]} 1... d5 {[%clk 0:02:56.6]} 2. exd5 {[%clk 0:03:00.3]}
2... c6 {[%clk 0:02:57.5]} 3. dxc6 {[%clk 0:02:56.4]} 3... Nxc6 {[%clk
0:02:58.4]} 4. Nf3 {[%clk 0:02:46.6]} 4... e5 {[%clk 0:02:58.8]} 5. Nc3 {[%clk
0:02:42.6]} 5... Nf6 {[%clk 0:02:57.1]} 6. d3 {[%clk 0:02:41.4]} 6... Bc5 {[%clk
0:02:57.7]} 7. Be2 {[%clk 0:02:39.8]} 7... h6 {[%clk 0:02:57.5]} 8. O-O {[%clk
0:02:40]} 8... O-O {[%clk 0:02:58]} 9. Ne4 {[%clk 0:02:38.7]} 9... Nxe4 {[%clk
0:02:57.7]} 10. dxe4 {[%clk 0:02:38.6]} 10... Qe7 {[%clk 0:02:58.5]} 11. c3
{[%clk 0:02:32]} 11... Be6 {[%clk 0:02:55.8]} 12. Qc2 {[%clk 0:02:30.7]} 12...
Rab8 {[%clk 0:02:53.3]} 13. b4 {[%clk 0:02:24.4]} 13... Bd6 {[%clk 0:02:52.6]}
14. Be3 {[%clk 0:02:23.8]} 14... a6 {[%clk 0:02:46.3]} 15. a4 {[%clk 0:02:23.3]}
15... Rfc8 {[%clk 0:02:46.8]} 16. Qd2 {[%clk 0:02:12.1]} 16... Rd8 {[%clk
0:02:34.4]} 17. Qb2 {[%clk 0:02:12]} 17... f6 {[%clk 0:02:34.1]} 18. Rfd1 {[%clk
0:02:10.9]} 18... Qf7 {[%clk 0:02:30.2]} 19. Bb6 {[%clk 0:02:08]} 19... Rd7
{[%clk 0:02:30.6]} 20. b5 {[%clk 0:02:07.1]} 20... Ne7 {[%clk 0:02:24.5]} 21.
Be3 {[%clk 0:01:48.4]} 21... f5 {[%clk 0:02:07.9]} 22. exf5 {[%clk 0:01:30]}
22... Nxf5 {[%clk 0:02:08.8]} 23. Ba7 {[%clk 0:01:09.9]} 23... Ra8 {[%clk
0:02:05.8]} 24. Bb6 {[%clk 0:01:06.9]} 24... e4 {[%clk 0:02:03.5]} 25. Nd4
{[%clk 0:01:05.7]} 25... Nxd4 {[%clk 0:01:42.9]} 26. Rxd4 {[%clk 0:01:01.2]}
26... e3 {[%clk 0:01:15.5]} 27. fxe3 {[%clk 0:00:55.9]} 27... Rf8 {[%clk
0:01:15.9]} 28. Rf1 {[%clk 0:00:54.8]} 28... Qe8 {[%clk 0:01:12.6]} 29. Rxf8+
{[%clk 0:00:54.8]} 29... Bxf8 {[%clk 0:01:10.4]} 30. Rxd7 {[%clk 0:00:52.9]}
30... Bxd7 {[%clk 0:01:11.3]} 31. Bd4 {[%clk 0:00:50.8]} 31... Bd6 {[%clk
0:01:00]} 32. Qb3+ {[%clk 0:00:49.2]} 32... Kh8 {[%clk 0:00:57.5]} 33. Qd5
{[%clk 0:00:47.5]} 33... Qg6 {[%clk 0:00:47.8]} 34. Qxb7 {[%clk 0:00:38.5]}
34... Qb1+ {[%clk 0:00:46.5]} 35. Kf2 {[%clk 0:00:38.3]} 35... Qf5+ {[%clk
0:00:24.3]} 36. Qf3 {[%clk 0:00:36.4]} 36... Qg6 {[%clk 0:00:21.3]} 37. bxa6
{[%clk 0:00:34.5]} 37... Bc6 {[%clk 0:00:21.7]} 38. Qxc6 {[%clk 0:00:25.9]}
38... Bg3+ {[%clk 0:00:22.1]} 39. hxg3 {[%clk 0:00:26.2]} 39... Qxc6 {[%clk
0:00:23]} 40. a7 {[%clk 0:00:26.7]} 40... Qxa4 {[%clk 0:00:22.5]} 41. Bf3 {[%clk
0:00:26.5]} 41... Qc2+ {[%clk 0:00:14.4]} 42. Kg1 {[%clk 0:00:26.5]} 42... Qb1+
{[%clk 0:00:12.2]} 43. Kh2 {[%clk 0:00:26.4]} 43... Qg6 {[%clk 0:00:13.1]} 44.
a8=Q+ {[%clk 0:00:26]} 44... Kh7 {[%clk 0:00:14]} 45. Be4 {[%clk 0:00:26]} 45...
h5 {[%clk 0:00:14.9]} 46. Bxg6+ {[%clk 0:00:26.1]} 46... Kh6 {[%clk 0:00:15.8]}
47. Bxg7+ {[%clk 0:00:25.2]} 47... Kg5 {[%clk 0:00:15.2]} 48. Qd5+ {[%clk
0:00:24.7]} 48... Kxg6 {[%clk 0:00:14]} 49. Qe6+ {[%clk 0:00:24.6]} 49... Kg5
{[%clk 0:00:13.8]} 50. Bh6# {[%clk 0:00:23.6]} 1-0

[Event "Late-Titled-Tuesday-Blitz-June-25-2024"]
[Site "Chess.com"]
[Date "2024.06.25"]
[Round "3"]
[White "Gyulamiryan-koryun"]
[Black "ChadBiryani"]
[Result "0-1"]
[WhiteElo "1814"]
[BlackElo "2523"]
[TimeControl "180+1"]
[EndTime "14:27:35 PDT"]
[Termination "ChadBiryani won on time"]

1. e4 {[%clk 0:02:47]} 1... d6 {[%clk 0:03:00]} 2. d4 {[%clk 0:02:45.7]} 2...
Nf6 {[%clk 0:03:00.7]} 3. Bd3 {[%clk 0:02:44.3]} 3... e5 {[%clk 0:03:00]} 4. Ne2
{[%clk 0:02:38.6]} 4... Be7 {[%clk 0:02:58.7]} 5. O-O {[%clk 0:02:37.9]} 5...
O-O {[%clk 0:02:57.9]} 6. c3 {[%clk 0:02:36.6]} 6... Bg4 {[%clk 0:02:50.5]} 7.
f4 {[%clk 0:02:33.7]} 7... exd4 {[%clk 0:02:34.9]} 8. cxd4 {[%clk 0:02:33.1]}
8... Nc6 {[%clk 0:02:17]} 9. Be3 {[%clk 0:02:30.2]} 9... d5 {[%clk 0:02:03.1]}
10. e5 {[%clk 0:02:21.1]} 10... Ne4 {[%clk 0:02:02.3]} 11. Nbc3 {[%clk
0:02:16.8]} 11... f5 {[%clk 0:01:59.8]} 12. h3 {[%clk 0:02:02.5]} 12... Bh5
{[%clk 0:01:54.3]} 13. a3 {[%clk 0:01:47.1]} 13... Rb8 {[%clk 0:01:26.3]} 14.
Qc2 {[%clk 0:01:46.1]} 14... Bf7 {[%clk 0:01:19.7]} 15. Bxe4 {[%clk 0:01:42.6]}
15... fxe4 {[%clk 0:01:15.3]} 16. f5 {[%clk 0:01:38.5]} 16... Bg5 {[%clk
0:01:14.9]} 17. Bf4 {[%clk 0:01:32.6]} 17... Bxf4 {[%clk 0:01:11]} 18. Nxf4
{[%clk 0:01:31.2]} 18... Nxd4 {[%clk 0:01:11.2]} 19. Qf2 {[%clk 0:01:22.2]}
19... Nxf5 {[%clk 0:01:00.2]} 20. e6 {[%clk 0:01:21.4]} 20... Bg6 {[%clk
0:00:55.7]} 21. Nxg6 {[%clk 0:01:19.4]} 21... hxg6 {[%clk 0:00:55.7]} 22. Qc5
{[%clk 0:01:11.4]} 22... c6 {[%clk 0:00:42.1]} 23. g4 {[%clk 0:00:55]} 23... b6
{[%clk 0:00:26.7]} 24. Qxc6 {[%clk 0:00:41]} 24... Ne7 {[%clk 0:00:26.6]} 25.
Rxf8+ {[%clk 0:00:35]} 25... Qxf8 {[%clk 0:00:25.2]} 26. Qd6 {[%clk 0:00:32]}
26... Rd8 {[%clk 0:00:24.3]} 27. Qe5 {[%clk 0:00:31.3]} 27... Qf6 {[%clk
0:00:14]} 28. Qc7 {[%clk 0:00:28.9]} 28... Rf8 {[%clk 0:00:13.9]} 29. Qg3 {[%clk
0:00:21.5]} 29... Qxe6 {[%clk 0:00:13.3]} 30. Rd1 {[%clk 0:00:18.5]} 30... e3
{[%clk 0:00:10.5]} 31. Re1 {[%clk 0:00:15]} 31... d4 {[%clk 0:00:10.4]} 32. Ne2
{[%clk 0:00:14]} 32... Qe4 {[%clk 0:00:08.4]} 33. Qd6 {[%clk 0:00:06.4]} 33...
Rf7 {[%clk 0:00:06.2]} 34. Qxd4 {[%clk 0:00:05.4]} 34... Qf3 {[%clk 0:00:06.5]}
35. Qd8+ {[%clk 0:00:01.6]} 35... Kh7 {[%clk 0:00:05.4]} 0-1

[Event "Late-Titled-Tuesday-Blitz-June-25-2024"]
[Site "Chess.com"]
[Date "2024.06.25"]
[Round "3"]
[White "Denmark2015"]
[Black "Laico"]
[Result "1/2-1/2"]
[WhiteElo "2625"]
[BlackElo "2442"]
[TimeControl "180+1"]
[EndTime "14:27:37 PDT"]
[Termination "Game drawn by repetition"]

1. d4 {[%clk 0:03:00.9]} 1... e6 {[%clk 0:03:00.2]} 2. c4 {[%clk 0:03:00]} 2...
f5 {[%clk 0:03:00.5]} 3. g3 {[%clk 0:02:59.4]} 3... Nf6 {[%clk 0:02:59.6]} 4.
Bg2 {[%clk 0:02:59.7]} 4... Be7 {[%clk 0:02:59.6]} 5. Nh3 {[%clk 0:02:56.1]}
5... O-O {[%clk 0:02:59.2]} 6. O-O {[%clk 0:02:54.7]} 6... d6 {[%clk 0:02:59.7]}
7. Nc3 {[%clk 0:02:30.7]} 7... e5 {[%clk 0:02:59.5]} 8. dxe5 {[%clk 0:02:17.3]}
8... dxe5 {[%clk 0:03:00.4]} 9. Qxd8 {[%clk 0:02:17.2]} 9... Rxd8 {[%clk
0:03:00.8]} 10. e4 {[%clk 0:02:08.7]} 10... fxe4 {[%clk 0:02:19.7]} 11. Ng5
{[%clk 0:02:08.2]} 11... Bf5 {[%clk 0:02:18.9]} 12. Ngxe4 {[%clk 0:02:05.4]}
12... Nc6 {[%clk 0:02:17.7]} 13. Nxf6+ {[%clk 0:01:59]} 13... Bxf6 {[%clk
0:02:01.2]} 14. Ne4 {[%clk 0:01:47.3]} 14... Rab8 {[%clk 0:01:45.5]} 15. Be3
{[%clk 0:01:44.6]} 15... Nd4 {[%clk 0:01:21.4]} 16. Rad1 {[%clk 0:01:03.1]}
16... Bxe4 {[%clk 0:01:21]} 17. Bxe4 {[%clk 0:01:01.9]} 17... c6 {[%clk
0:01:19]} 18. Kg2 {[%clk 0:00:57.1]} 18... Rd7 {[%clk 0:01:12.4]} 19. f4 {[%clk
0:00:52.7]} 19... Rbd8 {[%clk 0:01:08.9]} 20. Rd2 {[%clk 0:00:50.5]} 20... exf4
{[%clk 0:00:59.5]} 21. Bxf4 {[%clk 0:00:44]} 21... Ne6 {[%clk 0:00:58.5]} 22.
Rxd7 {[%clk 0:00:38.3]} 22... Nxf4+ {[%clk 0:00:58.6]} 23. Rxf4 {[%clk
0:00:37.3]} 23... Rxd7 {[%clk 0:00:58.9]} 24. Rf2 {[%clk 0:00:33.6]} 24... Rd4
{[%clk 0:00:58.8]} 25. Bf5 {[%clk 0:00:33.8]} 25... Kf8 {[%clk 0:00:57.7]} 26.
b3 {[%clk 0:00:33.8]} 26... Rd1 {[%clk 0:00:51.2]} 27. Bxh7 {[%clk 0:00:32.2]}
27... Ke7 {[%clk 0:00:48.4]} 28. Re2+ {[%clk 0:00:31.1]} 28... Kd6 {[%clk
0:00:45.9]} 29. Bf5 {[%clk 0:00:29.8]} 29... a5 {[%clk 0:00:44.5]} 30. Bc2
{[%clk 0:00:26.2]} 30... Ra1 {[%clk 0:00:42.4]} 31. Bg6 {[%clk 0:00:20.9]} 31...
Kc5 {[%clk 0:00:42.5]} 32. h4 {[%clk 0:00:20.2]} 32... Kb4 {[%clk 0:00:42.9]}
33. Bf7 {[%clk 0:00:17.9]} 33... Ka3 {[%clk 0:00:42.4]} 34. c5 {[%clk
0:00:14.2]} 34... Rxa2 {[%clk 0:00:39.1]} 35. Rxa2+ {[%clk 0:00:14.1]} 35...
Kxa2 {[%clk 0:00:40]} 36. b4+ {[%clk 0:00:14.8]} 36... Ka3 {[%clk 0:00:40.3]}
37. bxa5 {[%clk 0:00:15.3]} 37... Kb4 {[%clk 0:00:40.4]} 38. Kf3 {[%clk
0:00:11.1]} 38... Kxc5 {[%clk 0:00:35.7]} 39. Be6 {[%clk 0:00:09.8]} 39... Kb4
{[%clk 0:00:33.2]} 40. Bc8 {[%clk 0:00:09.9]} 40... Kxa5 {[%clk 0:00:32.7]} 41.
Bxb7 {[%clk 0:00:10.1]} 41... c5 {[%clk 0:00:33.3]} 42. Ke4 {[%clk 0:00:10.3]}
42... Kb4 {[%clk 0:00:33.3]} 43. Kd3 {[%clk 0:00:10.3]} 43... c4+ {[%clk
0:00:32.8]} 44. Kc2 {[%clk 0:00:10.6]} 44... c3 {[%clk 0:00:32.9]} 45. Bf3
{[%clk 0:00:09.7]} 45... Kc4 {[%clk 0:00:32.2]} 46. h5 {[%clk 0:00:08.8]} 46...
Kd4 {[%clk 0:00:32.2]} 47. g4 {[%clk 0:00:09.4]} 47... Ke3 {[%clk 0:00:32.6]}
48. Bd1 {[%clk 0:00:09.9]} 48... Kf4 {[%clk 0:00:31.6]} 49. Be2 {[%clk
0:00:09.6]} 49... Ke3 {[%clk 0:00:31.2]} 50. Bd3 {[%clk 0:00:09.5]} 50... Kf4
{[%clk 0:00:30.3]} 51. Bf5 {[%clk 0:00:10]} 51... Kg5 {[%clk 0:00:29.6]} 52. Be6
{[%clk 0:00:10.2]} 52... Kf4 {[%clk 0:00:29.7]} 53. Bf5 {[%clk 0:00:10.4]} 53...
Ke3 {[%clk 0:00:29.6]} 54. Be6 {[%clk 0:00:10.7]} 54... Kf4 {[%clk 0:00:29.6]}
55. Bf5 {[%clk 0:00:11.1]} 1/2-1/2

[Event "Late-Titled-Tuesday-Blitz-June-25-2024"]
[Site "Chess.com"]
[Date "2024.06.25"]
[Round "3"]
[White "glucolisis04"]
[Black "wild3000"]
[Result "0-1"]
[WhiteElo "2297"]
[BlackElo "2541"]
[TimeControl "180+1"]
[EndTime "14:27:40 PDT"]
[Termination "wild3000 won by resignation"]

1. d4 {[%clk 0:03:00.9]} 1... a6 {[%clk 0:03:00.9]} 2. e4 {[%clk 0:02:59.8]}
2... e6 {[%clk 0:03:01.8]} 3. Nf3 {[%clk 0:02:59]} 3... b5 {[%clk 0:03:02.2]} 4.
Bd3 {[%clk 0:02:57.9]} 4... Bb7 {[%clk 0:03:02.7]} 5. O-O {[%clk 0:02:57.6]}
5... c5 {[%clk 0:03:03]} 6. c3 {[%clk 0:02:55.6]} 6... Nf6 {[%clk 0:03:03.5]} 7.
Re1 {[%clk 0:02:54.5]} 7... d5 {[%clk 0:03:01.9]} 8. e5 {[%clk 0:02:50.3]} 8...
Ne4 {[%clk 0:03:01.4]} 9. Nbd2 {[%clk 0:02:50.2]} 9... Nxd2 {[%clk 0:03:01.2]}
10. Bxd2 {[%clk 0:02:49]} 10... Nc6 {[%clk 0:03:00.3]} 11. Bg5 {[%clk
0:02:46.2]} 11... Qb6 {[%clk 0:02:58.6]} 12. a3 {[%clk 0:02:39.6]} 12... h6
{[%clk 0:02:57.6]} 13. Be3 {[%clk 0:02:37.2]} 13... a5 {[%clk 0:02:57.8]} 14.
dxc5 {[%clk 0:02:28.1]} 14... Bxc5 {[%clk 0:02:58.7]} 15. Bxc5 {[%clk
0:02:26.6]} 15... Qxc5 {[%clk 0:02:59.6]} 16. Nd4 {[%clk 0:02:23]} 16... Nxd4
{[%clk 0:02:44.3]} 17. cxd4 {[%clk 0:02:22.5]} 17... Qb6 {[%clk 0:02:44.6]} 18.
Qg4 {[%clk 0:02:21.2]} 18... O-O {[%clk 0:02:39.7]} 19. Re3 {[%clk 0:02:18.1]}
19... f5 {[%clk 0:02:26.9]} 20. exf6 {[%clk 0:02:11.4]} 20... Rxf6 {[%clk
0:02:26.7]} 21. Rae1 {[%clk 0:02:11.6]} 21... Bc8 {[%clk 0:02:16.7]} 22. Re5
{[%clk 0:02:04.5]} 22... Qd6 {[%clk 0:01:54.3]} 23. Bxb5 {[%clk 0:01:55.3]}
23... a4 {[%clk 0:01:53]} 24. R1e3 {[%clk 0:01:33]} 24... Rb8 {[%clk 0:01:51.5]}
25. Rg3 {[%clk 0:01:30.4]} 25... Qf8 {[%clk 0:01:40.9]} 26. Bxa4 {[%clk
0:01:11.1]} 26... Rxb2 {[%clk 0:01:31.8]} 27. h3 {[%clk 0:01:10.8]} 27... Rbxf2
{[%clk 0:01:22.6]} 28. Rh5 {[%clk 0:00:55.9]} 28... R2f4 {[%clk 0:01:10.4]} 29.
Qe2 {[%clk 0:00:50.1]} 29... Rxd4 {[%clk 0:01:04]} 30. Bc2 {[%clk 0:00:42.3]}
30... Qc5 {[%clk 0:00:50.8]} 31. Kh2 {[%clk 0:00:34.8]} 31... Qc7 {[%clk
0:00:48]} 32. Qe3 {[%clk 0:00:25.4]} 32... Rc4 {[%clk 0:00:42]} 33. Bd3 {[%clk
0:00:20.2]} 33... Rcf4 {[%clk 0:00:29.4]} 34. a4 {[%clk 0:00:10.4]} 34... e5
{[%clk 0:00:25.6]} 35. Bb5 {[%clk 0:00:10.3]} 35... e4 {[%clk 0:00:18.5]} 36.
Qd4 {[%clk 0:00:09.9]} 36... Kh7 {[%clk 0:00:17.7]} 37. Qxd5 {[%clk 0:00:09.7]}
37... Bb7 {[%clk 0:00:16]} 38. Qd4 {[%clk 0:00:02.6]} 38... Rf2 {[%clk
0:00:15.7]} 39. Qxf6 {[%clk 0:00:02.3]} 39... Rxf6 {[%clk 0:00:15.1]} 40. Be2
{[%clk 0:00:01.3]} 40... Rg6 {[%clk 0:00:13.6]} 0-1